Cogmind - Beta 15 @@@ ROGUE MODE // 2025.06.19 @ 20:20:14 Player: Jammed Result: Destroyed by Y-45 Defender with Heavy Assault Rifle Performance ------------- Evolutions (2) 1000 Regions Visited (8) 1600 Robots Destroyed (185) 925 Value Destroyed (6611) 6611 Prototype IDs (4) 80 Alien Tech Used (0) 0 Bonus (4145) 4145 TOTAL SCORE: 14361 Bonus ------- High Alert Combat Kills 524 Follower Combat Kills 2071 Entered Garrisons 600 Used RIF Installer 1000 Friendly Fire -50 Cogmind --------- Core Integrity 0/550 Matter 266/300 Energy 96/100 System Corruption 7% Temperature Cool (9) Movement Rolling (150) Ox4 Location -8/Garrison Parts ------- > --- POWER (1) -------- (None) > --- PROPULSION (2) --- Armored Wheel > --- UTILITY (6) ------ High-capacity Storage Unit Hardened Medium Armor Plating Layered Light Armor Plating Hacking Suite Hacking Suite Relay Coupler [Grunt] (2) > --- WEAPON (2) ------- Advanced Assault Cannon > --- INVENTORY (20) --- Armored Wheel Armored Wheel Kinecellerator Layered Light Armor Plating Shield Generator Hacking Suite System Shield System Shield Relay Coupler [Grunt] (26) Relay Coupler [Grunt] (27) High-powered Tractor Beam Trap Extractor (4/4 Tiamat Bomb) Heavy Assault Rifle Advanced Assault Cannon Advanced Assault Cannon Shock Bomb Launcher Improved Datajack Remote Datajack Peak State ------------ > --- POWER ------------ Fission Core > --- PROPULSION ------- Armored Wheel Armored Wheel > --- UTILITY ---------- High-capacity Storage Unit Layered Light Armor Plating Hacking Suite Hacking Suite Relay Coupler [Grunt] Relay Coupler [Sentry] > --- WEAPON ----------- Advanced Assault Cannon Remote Datajack > --- INVENTORY -------- Armored Wheel Armored Wheel Hardened Medium Armor Plating Hardened Medium Armor Plating Layered Light Armor Plating Layered Light Armor Plating Shield Generator Hacking Suite System Shield Relay Coupler [Grunt] Relay Coupler [Grunt] Relay Coupler [Grunt] High-powered Tractor Beam Trap Extractor Heavy Assault Rifle Advanced Assault Cannon Advanced Assault Cannon Shock Bomb Launcher Improved Datajack Remote Datajack [Rating: 41] Favorites ----------- Power Cooled Ion Engine Engine Cooled Ion Engine Power Core Fission Core Propulsion Armored Wheel Treads Light Treads Leg Aluminum Leg Wheel Armored Wheel Flight Unit Improved Flight Unit Utility Hacking Suite Device Shield Generator Storage High-capacity Storage Unit Processor Transport Network Coupler Hackware Hacking Suite Protection Hardened Light Armor Plating Weapon Heavy Particle Cannon Energy Gun Small Laser Energy Cannon Heavy Particle Cannon Ballistic Gun Heavy Assault Rifle Ballistic Cannon Advanced Assault Cannon Launcher Shock Bomb Launcher Special Weapon Remote Datajack Special Melee Weapon Improved Datajack Build | -11 -10 -9 -9 -9 -8 -8 -8 -8 ------- Run | Yrd Mat Mat Sto Gar Mat Gar Mat Gar Slots Evolved 4 | . . 2 . . 2 . . . Power . | . . . . . . . . . Propulsion . | . . . . . . . . . Utility 4 | . . 2 . . 2 . . . Weapon . | . . . . . . . . . Parts Attached 92 | 1 12 19 12 9 14 13 6 6 Power 6 | . . 2 2 1 . . 1 . Engine 5 | . . 2 2 1 . . . . Core 1 | . . . . . . . 1 . Reactor . | . . . . . . . . . Propulsion 19 | . 4 2 5 . 1 5 2 . Treads 2 | . 2 . . . . . . . Leg . | . . . . . . . . . Wheel 15 | . 2 1 4 . 1 5 2 . Hover . | . . . . . . . . . Flight 2 | . . 1 1 . . . . . Utility 39 | 1 1 7 3 6 10 4 2 5 Device 9 | 1 . 3 1 2 1 . . 1 Storage 1 | . 1 . . . . . . . Processor 1 | . . 1 . . . . . . Hackware 16 | . . . . 4 6 3 2 1 Protection 12 | . . 3 2 . 3 1 . 3 Artifact . | . . . . . . . . . Weapon 28 | . 7 8 2 2 3 4 1 1 Energy Gun . | . . . . . . . . . Energy Cannon 8 | . 4 2 . 1 1 . . . Ballistic Gun 4 | . 1 . . . . 3 . . Ballistic Cannon 4 | . . . . . 1 1 1 1 Launcher 7 | . 1 5 1 . . . . . Special Weapon 3 | . 1 . . 1 1 . . . Impact Weapon . | . . . . . . . . . Slashing Weapon . | . . . . . . . . . Piercing Weapon . | . . . . . . . . . Special Melee Weapon 2 | . . 1 1 . . . . . Unidentified Prototypes 4 | . 1 3 . . . . . . Parts Lost 21 | . 3 1 4 1 3 2 1 6 Power 2 | . . . . . 1 . . 1 Propulsion 10 | . 2 . 3 1 1 1 1 1 Utility 7 | . 1 1 1 . 1 . . 3 Weapon 2 | . . . . . . 1 . 1 Highest Loss Streak 3 | . 3 1 1 1 2 1 1 2 To Critical Strikes . | . . . . . . . . . Average Backups 18 | 6 15 19 19 19 18 19 19 19 Power . | 1 1 1 1 . . . . . Propulsion 2 | 4 1 3 2 3 3 2 2 2 Utility 8 | . 4 6 7 7 9 9 11 11 Weapon 5 | 1 8 7 6 6 3 4 4 4 Tool/Special . | . . . . . . . . . Unused Backups 35 | 6 4 11 1 1 2 1 . 9 Power 3 | 1 . 2 . . . . . . Propulsion 7 | 2 2 1 . . . 1 . 1 Utility 13 | 1 1 . 1 . 2 . . 8 Weapon 12 | 2 1 8 . 1 . . . . Tool/Special . | . . . . . . . . . Average Slot Usage (%) 93 | . 96 98 95 99 92 81 93 85 Engine 6 | . 14 11 11 11 6 . . . Core 1 | . . . . . . . 7 4 Treads 3 | . 13 9 . . . . . . Wheel 15 | . 13 12 17 21 15 15 17 18 Device 10 | . 11 21 21 14 9 . . . Storage 10 | . 14 11 11 11 9 9 9 9 Hackware 17 | . . . . 12 26 36 36 28 Protection 7 | . . 10 11 6 7 2 7 13 Energy Cannon 10 | . 17 19 20 19 7 . . . Ballistic Cannon 3 | . . . . . 3 7 9 9 Special Weapon 3 | . 3 . . 2 4 8 6 3 Peak Build Rating 41 | 7 13 21 25 28 37 39 41 41 Average Rating 27 | 6 10 18 21 24 33 34 37 32 On Entrance 23 | 6 7 10 21 23 28 37 38 41 Naked Turns . | . . . . . . . . . Heaviest Build 74 | 13 54 68 68 68 74 53 63 68 Greatest Support 32 | 20 20 32 32 22 22 24 24 24 Greatest Overweight (x) 22 | . 5 4 22 4 6 4 4 2 Average Overweight (x) 2 | . 4 2 3 2 2 2 2 2 Largest Inventory Capacity 20 | 8 20 20 20 20 20 20 20 20 Average Capacity 19 | 8 19 20 20 20 20 20 20 20 Most Carried 20 | 7 20 20 20 20 20 20 20 20 Average Carried 18 | 6 15 19 19 19 18 19 19 19 Final Capacity 20 | 8 20 20 20 20 20 20 20 20 Final Carried 20 | 7 17 18 20 20 18 20 20 18 Class Distribution -------------------- 40% | Commander-Mutant 38% | Mutant 13% | Bothacker-Mutant 3% | Hacker-Mutant 3% | Scavenger-Mutant Dominant Class ---------------- Mutant | -10/Materials Mutant | -9/Materials Mutant | -9/Storage Mutant | -9/Garrison Bothacker-Mutant | -8/Materials Commander-Mutant | -8/Garrison Commander-Mutant | -8/Materials Bothacker-Mutant | -8/Garrison Resources | -11 -10 -9 -9 -9 -8 -8 -8 -8 ----------- Run | Yrd Mat Mat Sto Gar Mat Gar Mat Gar Matter Collected 4329 | 216 174 702 313 115 550 1110 417 732 Remotely . | . . . . . . . . . Salvage Created 6539 | 94 578 1901 1305 619 516 638 534 354 Parts 362 | 8 36 102 70 45 35 30 22 14 Haulers Intercepted 10 | . 2 6 . . . . 2 . Recyclers Shooed 2 | . 1 . . . . . 1 . Parts Field Recycled . | . . . . . . . . . Retrieved Matter . | . . . . . . . . . Parts Self-Destructed . | . . . . . . . . . Prevented . | . . . . . . . . . Kills | -11 -10 -9 -9 -9 -8 -8 -8 -8 ------- Run | Yrd Mat Mat Sto Gar Mat Gar Mat Gar Combat Hostiles Destroyed 126 | . 11 33 22 13 17 13 5 12 Guns 8 | . 7 . . . . 1 . . Cannons 86 | . . 16 12 13 16 12 5 12 AOE 29 | . 4 14 10 . 1 . . . Classes Destroyed 16 | 2 5 5 . 2 1 1 . . Worker 6 | . . 1 4 . 1 . . . Builder 6 | . . 4 2 . . . . . Tunneler 5 | 1 1 2 . . . . 1 . Hauler 10 | . 2 6 . . . . 2 . Recycler 12 | 1 3 2 3 . . . 3 . Mechanic 2 | . 1 . 1 . . . . . Operator 3 | . . 1 2 . . . . . Watcher 14 | . 3 5 1 . 3 . 2 . Swarmer 35 | . 6 7 6 3 10 2 . 1 Grunt 50 | . 5 17 10 5 5 4 1 3 Brawler 4 | . . 1 1 1 . . 1 . Duelist 3 | . . . . 1 1 . . 1 Sentry 23 | . . 8 5 1 . 5 2 2 Specialist 5 | . . . . . . 2 . 3 Hunter 2 | . . . . . 1 . 1 . Programmer 5 | . . . . 3 . . . 2 Best Kill Streak 9 | 2 8 9 8 5 4 3 4 3 Combat Bots Only 6 | . 6 6 5 5 4 3 2 3 Max Kills in Single Turn 4 | 1 2 4 3 2 2 1 1 1 Gunslinging . | . . . . . . . . . Exploded 4 | . 2 4 3 . 1 . . . Melee . | . . . . . . . . . Uniques/NPCs Destroyed . | . . . . . . . . . Combat | -11 -10 -9 -9 -9 -8 -8 -8 -8 -------- Run | Yrd Mat Mat Sto Gar Mat Gar Mat Gar Hostile Shots Fired 557 | . 39 87 107 33 72 78 20 121 Missed 180 | . 16 26 36 5 25 31 6 35 Hits 377 | . 23 61 71 28 47 47 14 86 Melee 1 | . . . . . 1 . . . Projectile 376 | . 23 61 71 28 46 47 14 86 AOE 1 | . . . . 1 . . . . Critical Strikes 15 | . 1 2 1 . 3 1 1 6 Part Disruptions 1 | . . . . 1 . . . . Damage Taken 5275 | . 608 682 697 286 801 758 232 1211 Core 1017 | . 155 107 120 84 124 144 33 250 Absorbed by Shields 397 | . . 190 141 62 4 . . . Regen/Repaired (Parts) 564 | . . 210 293 . 61 . . . Core Remaining (%) 53 | 100 38 . . 22 . . . . Volleys Fired 710 | 6 58 89 85 56 94 159 51 112 Largest 2 | 2 2 2 2 2 2 2 1 1 Hottest 150 | 60 136 150 150 150 150 46 40 40 Shots Fired 943 | 12 92 157 121 78 122 198 51 112 Gun 141 | 12 49 . . . . 80 . . Cannon 676 | . 22 123 112 78 100 90 44 107 Launcher 50 | . 8 33 9 . . . . . Special 76 | . 13 1 . . 22 28 7 5 Kinetic 375 | 6 23 . . . 25 170 44 107 Thermal 456 | 6 61 124 112 78 75 . . . Explosive 20 | . 8 10 2 . . . . . Electromagnetic 30 | . . 23 7 . . . . . Robot Hit Streak 26 | 8 6 15 13 7 14 26 8 13 Robot Miss Streak 4 | 1 4 4 4 3 3 3 3 3 Penetration Max . | . . . . . . . . . Secondary Targets 1 | . 1 . . . . . . . Max Gunslinging Chain 1 | . 1 . . . . . . . Shots Hit Robots 558 | 10 40 92 65 26 74 151 31 69 Core Hits 249 | 3 30 63 38 17 26 43 12 17 Critical Kills 2 | . . 1 . 1 . . . . Critical Parts Destroyed . | . . . . . . . . . Critical Strikes 17 | . . 1 . 1 3 4 3 5 Meltdown 2 | . . 1 . 1 . . . . Blast 15 | . . . . . 3 4 3 5 Melee Attacks 11 | . . 2 . . 5 . . 4 Impact . | . . . . . . . . . Slashing . | . . . . . . . . . Piercing . | . . . . . . . . . Sneak Attacks 10 | . . 2 . . 4 . . 4 Combat Hostiles . | . . . . . . . . . Follow-up Attacks . | . . . . . . . . . Damage Inflicted 13439 | 94 953 3300 2355 861 1389 1823 674 1990 Guns 943 | 94 303 . . . . 546 . . Cannons 9588 | . 160 1642 1597 861 1389 1277 672 1990 Explosions 2906 | . 490 1658 758 . . . . . Melee . | . . . . . . . . . Ramming 2 | . . . . . . . 2 . Kinetic 4957 | 38 113 . . . 321 1823 672 1990 Thermal 5718 | 56 350 1725 1658 861 1068 . . . Explosive 1458 | . 490 784 184 . . . . . Electromagnetic 1304 | . . 791 513 . . . . . Impact . | . . . . . . . . . Slashing . | . . . . . . . . . Piercing . | . . . . . . . . . Highest Corruption 11 | . 11 1 1 1 . . . 7 Average Corruption 2 | . 11 1 1 1 . . . 5 Corruption Purged . | . . . . . . . . . Corruption Blocked . | . . . . . . . . . Effects 59 | . 11 2 11 12 . . . 23 Message Errors 15 | . 3 1 3 3 . . . 5 Matter Fused 13 | . 1 . 4 2 . . . 6 Heat Flow Errors 8 | . 1 . 3 2 . . . 2 Energy Discharges 7 | . 2 . . . . . . 5 Parts Rejected 1 | . 1 . . . . . . . Parts Fused 1 | . 1 . . . . . . . Data Loss (minor) 6 | . . . 1 3 . . . 2 Data Loss (major) 2 | . 2 . . . . . . . Misfires 3 | . . 1 . 1 . . . 1 Alerts 1 | . . . . . . . . 1 Weapon Failures 2 | . . . . 1 . . . 1 Overload Shots . | . . . . . . . . . Overflow Damage 339 | . 79 42 59 21 20 3 45 70 Projectiles 229 | . 11 23 36 21 20 3 45 70 Explosions 110 | . 68 19 23 . . . . . Melee . | . . . . . . . . . Knockbacks 26 | . . . . . 3 3 5 15 Impact . | . . . . . . . . . Kinetic 22 | . . . . . 2 3 5 12 Secondary 4 | . . . . . 1 . . 3 Self-Inflicted Damage 163 | . 30 116 16 . . . 1 . Shots 12 | . 3 7 2 . . . . . Rammed 1 | . . . . . . . 1 . Targets Rammed 1 | . . . . . . . 1 . Kicked . | . . . . . . . . . Crushed . | . . . . . . . . . Highest Temperature 327 | 40 225 327 292 285 303 16 61 253 Average Temperature 69 | 17 48 76 85 75 72 4 12 73 Received Heat Transfer 1223 | . 36 219 206 24 189 225 63 261 Effects 1 | . . . 1 . . . . . Interference 1 | . . . 1 . . . . . Siege Activations . | . . . . . . . . . Martial Activations . | . . . . . . . . . Shielding Activations . | . . . . . . . . . Robots Disrupted . | . . . . . . . . . Combat Hostiles . | . . . . . . . . . Robots Corrupted 3 | . . 3 . . . . . . Combat Hostiles 3 | . . 3 . . . . . . Parts Fried 6 | . . 6 . . . . . . Impact Corruptions . | . . . . . . . . . Robots Melted 2 | . . 1 . 1 . . . . Combat Hostiles . | . . . . . . . . . Parts Melted 12 | . . 6 2 2 2 . . . Heat Transferred 9030 | 125 721 2973 2436 1221 1554 . . . Parts Sabotaged . | . . . . . . . . . Parts Stolen . | . . . . . . . . . Parts Stripped . | . . . . . . . . . Power Chain Reactions 5 | . . 3 2 . . . . . Alert | -11 -10 -9 -9 -9 -8 -8 -8 -8 ------- Run | Yrd Mat Mat Sto Gar Mat Gar Mat Gar Maximum Alert Level 4 | . . 2 2 3 2 4 3 3 Low Security (%) 49 | 100 100 66 . . 82 8 71 32 Level 1 20 | . . 24 81 16 . 8 11 30 Level 2 15 | . . 8 18 27 17 18 10 34 Level 3 9 | . . . . 55 . 28 6 2 Level 4 4 | . . . . . . 36 . . Level 5 . | . . . . . . . . . High Security . | . . . . . . . . . Max Security . | . . . . . . . . . Peak Influence 1524 | 10 192 662 551 1036 531 1524 742 735 Initial 742 | . . . 278 217 505 70 742 15 Average 318 | 1 67 135 368 704 125 859 199 311 Influence Increases 7532 | 10 384 1148 1006 1049 698 1714 596 927 Destroy 0b10 Robot/C 3980 | . 220 660 540 520 420 800 260 560 Destroy 0b10 Robot/NC 365 | 10 50 105 75 10 35 20 60 . Destroy Leader 636 | . 40 192 154 30 90 10 90 30 Allied During Kill 772 | . . . 58 125 22 353 97 117 Trap Triggered on 0b10 20 | . . . 20 . . . . . Successful Hack 106 | . 13 8 18 24 13 12 15 3 Disable Machine 360 | . 15 75 60 90 . 45 45 30 Anti-Garrison Action 600 | . . . . 200 . 350 . 50 Destroy Structure 468 | . 46 63 51 50 43 94 29 92 Partial Spotted 15 | . . . 15 . . . . . Lose Combat Pursuer 210 | . . 45 15 . 75 30 . 45 Influence Decreases 6846 | 10 384 488 1331 348 1626 298 2096 265 Entered New Map 1860 | . . . 382 118 531 38 782 9 Time Decay 2624 | 10 382 468 589 . 571 . 604 . Lost Part 166 | . 2 10 40 10 14 20 10 60 Lost Ally 846 | . . 10 20 220 60 240 100 196 Purge Threat 1350 | . . . 300 . 450 . 600 . Squads Dispatched 19 | . . 5 5 . 5 . 4 . Investigation 3 | . . 1 . . . . 2 . Extermination . | . . . . . . . . . Reinforcement 8 | . . 4 2 . 1 . 1 . Assault 2 | . . . 2 . . . . . Garrison 6 | . . . 1 . 4 . 1 . Intercept . | . . . . . . . . . Searches Triggered . | . . . . . . . . . Construction Impeded 2 | . . 2 . . . . . . Haulers Reinforced . | . . . . . . . . . Active Scanning Responses . | . . . . . . . . . Cargo Convoy Interrupts . | . . . . . . . . . Stealth | -11 -10 -9 -9 -9 -8 -8 -8 -8 --------- Run | Yrd Mat Mat Sto Gar Mat Gar Mat Gar Distress Signals 17 | . 2 3 2 . 6 1 3 . Communications Jammed . | . . . . . . . . . Distress Signals . | . . . . . . . . . Times Spotted 277 | . 21 42 34 23 58 45 25 29 Peak Tracking Total 8 | . 7 7 6 3 6 8 4 6 Tactical Retreats 11 | . . 3 1 . 3 2 . 2 Traps | -11 -10 -9 -9 -9 -8 -8 -8 -8 ------- Run | Yrd Mat Mat Sto Gar Mat Gar Mat Gar Traps Triggered 17 | . 1 . 2 3 2 6 2 1 Indirectly 1 | . . . 1 . . . . . Trap Hack Attempts 55 | . . . 55 . . . . . Triggered . | . . . . . . . . . Disarmed . | . . . . . . . . . Reprogrammed 4 | . . . 4 . . . . . Reused 2 | . . . 2 . . . . . Traps Extracted . | . . . . . . . . . Installed . | . . . . . . . . . Triggered 2 | . . . 2 . . . . . Most Traps Carried 4 | . . . . 4 4 4 4 4 Machines | -11 -10 -9 -9 -9 -8 -8 -8 -8 ---------- Run | Yrd Mat Mat Sto Gar Mat Gar Mat Gar Machines Disabled 33 | . 1 6 4 10 . 6 3 3 Max in Single Turn 1 | . 1 1 1 1 . 1 1 1 Garrison Relay 8 | . . . . 4 . 3 . 1 Machines Repaired . | . . . . . . . . . Machines Dismantled . | . . . . . . . . . Machines Sabotaged . | . . . . . . . . . Overloaded Fab Kills . | . . . . . . . . . Hacking | -11 -10 -9 -9 -9 -8 -8 -8 -8 --------- Run | Yrd Mat Mat Sto Gar Mat Gar Mat Gar Machines Accessed 53 | . 6 6 11 4 12 1 12 1 Terminals 43 | . 6 4 8 4 9 1 10 1 Fabricators . | . . . . . . . . . Repair Stations 4 | . . 1 2 . 1 . . . Recycling Units 1 | . . . . . . . 1 . Scanalyzers 2 | . . 1 . . 1 . . . Garrison Access 3 | . . . 1 . 1 . 1 . Total Hacks 161 | . 18 21 33 8 36 2 41 2 Successful 109 | . 10 13 26 3 27 2 27 1 Failed 51 | . 7 8 7 5 9 . 14 1 Catastrophic 4 | . . 2 1 . . . 1 . Database Lockouts 1 | . 1 . . . . . . . Manual 98 | . 18 8 10 . 28 1 33 . Terminals 123 | . 18 9 16 8 31 2 37 2 Fabricators . | . . . . . . . . . Repair Stations 28 | . . 10 16 . 2 . . . Recycling Units 2 | . . . . . . . 2 . Scanalyzers 4 | . . 2 . . 2 . . . Garrison Access 4 | . . . 1 . 1 . 2 . Terminal Hacks 37 | . 1 1 5 3 10 2 14 1 Part Schematic 2 | . . . . . 1 . 1 . Robot Analysis 6 | . 1 . . . 5 . . . Open Door 4 | . . . 2 1 . . . 1 Branch Access Points 1 | . . 1 . . . . . . Emergency Access Points 1 | . . . . . . 1 . . Terminal Index 1 | . . . . . . . 1 . Garrison Index 1 | . . . . . . . 1 . Alert Level 1 | . . . 1 . . . . . Unreport Threat 9 | . . . 2 . 3 . 4 . Locate Traps 1 | . . . . . 1 . . . Dispatch Records 1 | . . . . . . . 1 . Patrol Status 1 | . . . . . . . 1 . Hauler Manifests 1 | . . . . . . . 1 . Registered Prototypes 1 | . . . . . . . 1 . Zone Layout 3 | . . . . . . . 3 . Garrison Registry 2 | . . . . 1 . 1 . . Security Stations 1 | . . . . 1 . . . . Fabricator Hacks . | . . . . . . . . . Repair Station Hacks 24 | . . 8 14 . 2 . . . Scan Component 12 | . . 4 7 . 1 . . . Repair 12 | . . 4 7 . 1 . . . Recycling Unit Hacks . | . . . . . . . . . Scanalyzer 4 | . . 2 . . 2 . . . Insert Component 2 | . . 1 . . 1 . . . Analyze 2 | . . 1 . . 1 . . . Garrison Access Hacks 3 | . . . 1 . 1 . 1 . Unlock Access 3 | . . . 1 . 1 . 1 . Unauthorized Hacks 41 | . 9 2 6 . 12 . 12 . Terminals 37 | . 9 1 6 . 12 . 9 . Track 1 | . . . . . 1 . . . Assimilate 3 | . 1 . . . 2 . . . Botnet 9 | . 2 . 1 . 3 . 3 . Operators 3 | . 1 . . . 1 . 1 . Skim 21 | . 5 1 5 . 5 . 5 . Fabricators . | . . . . . . . . . Repair Stations 1 | . . 1 . . . . . . Patch 1 | . . 1 . . . . . . Recycling Units 2 | . . . . . . . 2 . Reject 1 | . . . . . . . 1 . Mask 1 | . . . . . . . 1 . Scanalyzers . | . . . . . . . . . Garrison Access 1 | . . . . . . . 1 . Reprogram 1 | . . . . . . . 1 . Data Cores Recovered . | . . . . . . . . . Used . | . . . . . . . . . Hacking Detections 43 | . 6 6 9 3 9 1 9 . Full Trace Events 1 | . . . . . . . 1 . Feedback Events . | . . . . . . . . . Feedback Blocked . | . . . . . . . . . Robot Schematics Acquired . | . . . . . . . . . Robots Built . | . . . . . . . . . Authchips . | . . . . . . . . . Time . | . . . . . . . . . Total Robot Build Rating . | . . . . . . . . . Part Schematics Acquired 2 | . . . . . 1 . 1 . Parts Built . | . . . . . . . . . Authchips . | . . . . . . . . . Time . | . . . . . . . . . Total Part Build Rating . | . . . . . . . . . Parts Repaired 12 | . . 4 7 . 1 . . . Time 440 | . . 160 248 . 32 . . . Parts Recycled . | . . . . . . . . . Recycled Matter . | . . . . . . . . . Retrieved Matter . | . . . . . . . . . Retrieved Components . | . . . . . . . . . Parts Scanalyzed 2 | . . 1 . . 1 . . . Part Schematics Acquired . | . . . . . . . . . Parts Damaged . | . . . . . . . . . Bothacking | -11 -10 -9 -9 -9 -8 -8 -8 -8 ------------ Run | Yrd Mat Mat Sto Gar Mat Gar Mat Gar Used RIF Installer 2 | . . . . 1 . 1 . . Command Fork 1 | . . . . . . 1 . . Robots Hacked 38 | . . 1 . . 21 8 6 2 Non-combat 15 | . . 1 . . 12 . 2 . Combat 23 | . . . . . 9 8 4 2 Robot Hacks Applied 41 | . . 2 . . 23 8 6 2 parse_system 5 | . . 1 . . 3 1 . . ignore_repairs 7 | . . . . . 5 . 2 . find_recycling 1 | . . 1 . . . . . . ignore_parts 1 | . . . . . 1 . . . find_station 1 | . . . . . 1 . . . spike_heat 1 | . . . . . . 1 . . amplify_resonance 5 | . . . . . 4 1 . . overwrite_iff 2 | . . . . . . 2 . . streamctrl_high 1 | . . . . . . 1 . . formatsys_high 17 | . . . . . 9 2 4 2 Relay Couplers Released 32 | . . . . 18 . 11 . 3 Machine Destruction 32 | . . . . 18 . 11 . 3 Attached 13 | . . . . 1 6 3 2 1 Fabnet Peak Effective % . | . . . . . . . . . Robots Rewired 15 | . . . . . . 13 . 2 Allies Hacked 2 | . . . . . . . . 2 Hacks Repelled . | . . . . . . . . . Allies | -11 -10 -9 -9 -9 -8 -8 -8 -8 -------- Run | Yrd Mat Mat Sto Gar Mat Gar Mat Gar Total Allies 55 | . 1 . 12 1 11 20 6 4 Largest Group 17 | . 1 1 11 11 8 17 11 11 Highest-Rated Group 357 | . 10 10 119 119 201 357 286 248 Highest-Rated Ally 90 | . 10 10 31 31 90 90 90 90 Total Orders 86 | . . . 3 . 11 32 11 29 STAY 42 | . . . 1 . 7 15 4 15 FOLLOW 44 | . . . 2 . 4 17 7 14 Ally Attacks 468 | . . . 45 61 29 153 86 94 Total Damage 7554 | . . . 575 764 533 2705 1196 1781 Kills 86 | . . . 7 13 7 30 12 17 Allies Corrupted 1 | . . . . . . . 1 . Allies Melted . | . . . . . . . . . Intel | -11 -10 -9 -9 -9 -8 -8 -8 -8 ------- Run | Yrd Mat Mat Sto Gar Mat Gar Mat Gar Active Infowar (turns) 2397 | 20 1171 900 109 24 173 . . . Seismic 2397 | 20 1171 900 109 24 173 . . . T.N.C. 2 | . . 2 . . . . . . Robot Analysis Total 6 | . 1 . . . 5 . . . Derelict Logs Recovered . | . . . . . . . . . Drone Launches . | . . . . . . . . . Drone Recoveries . | . . . . . . . . . Exploration | -11 -10 -9 -9 -9 -8 -8 -8 -8 ------------- Run | Yrd Mat Mat Sto Gar Mat Gar Mat Gar Turns Passed 14361 | 52 1488 2401 1852 1142 2428 1883 2087 1028 Spaces Moved 6846 | 28 656 947 725 660 1233 985 1131 481 Core 1 | . . . 1 . . . . . Treads . | . . . . . . . . . Legs 75 | 28 47 . . . . . . . Wheels 6736 | . 609 947 690 660 1233 985 1131 481 Hover . | . . . . . . . . . Flight 34 | . . . 34 . . . . . Fastest Speed 105 | 120 120 130 115 115 115 105 105 120 Average Speed 131 | 120 147 142 151 122 125 127 121 120 Slowest Speed 1150 | 120 155 160 1150 150 170 150 150 120 Overloaded Moves . | . . . . . . . . . Propulsion Burnouts . | . . . . . . . . . Robots Hopped . | . . . . . . . . . Potential Cave-ins 2 | . . . . . 2 . . . Cave-ins Triggered 1 | . 1 . . . . . . . Exploration Rate (%) 69 | 4 94 78 84 85 74 80 85 44 Regions Visited 8 Branch Regions 1 Pre-discovered Areas 6 | . . . 3 . 2 . 1 . Known Exits Taken 4 | . . 1 1 . 1 . 1 . Unknown Exits Taken 2 | 1 1 . . . . . . . Scrap Searched . | . . . . . . . . . Spaces Dug 41 | . 17 2 5 . 11 . 6 . Terrain Destroyed 237 | . 53 71 56 . 44 . 13 . Melee . | . . . . . . . . . Projectile 108 | . 13 2 36 . 44 . 13 . AOE 129 | . 40 69 20 . . . . . Terrain Rammed . | . . . . . . . . . Walls Destroyed . | . . . . . . . . . Machines Disabled . | . . . . . . . . . Actions | -11 -10 -9 -9 -9 -8 -8 -8 -8 --------- Run | Yrd Mat Mat Sto Gar Mat Gar Mat Gar Total 11238 | 35 1059 1838 1355 913 1991 1426 1798 823 Wait 3209 | . 304 715 440 144 609 194 597 206 Move 6838 | 27 655 946 724 659 1232 984 1130 481 Hop . | . . . . . . . . . Pick Up 86 | 1 16 22 12 9 11 10 3 2 Fast Attach 40 | 1 2 10 5 1 10 5 5 1 Attach 34 | . 4 6 4 2 7 3 3 5 Detach 6 | . . 1 1 . . 2 1 1 Swap 90 | . 13 23 15 9 14 9 5 2 Drop 69 | . 7 24 6 9 8 12 2 1 Fire 710 | 6 58 89 85 56 94 159 51 112 Melee 11 | . . 2 . . 5 . . 4 Ram 1 | . . . . . . . 1 . Kick . | . . . . . . . . . Crush . | . . . . . . . . . Escape Stasis 88 | . . . 8 24 . 48 . 8 Rewire 1 | . . . . . 1 . . . Trap 55 | . . . 55 . . . . . Miscellaneous . | . . . . . . . . . Route ------- -11/Scrapyard -10/Materials (discovered 5 exits: *Mat x3 / [*Min x2]) -9/Materials (discovered 4 exits: *Mat / *Min x2 / *Sto) -9/Storage (discovered 3 exits: *Mat / Rec / Gar) -9/Garrison (discovered 3 exits: *Mat x3) -8/Materials (discovered 4 exits: *Fac x3 / Gar) -8/Garrison (discovered 4 exits: *Mat x4) -8/Materials (discovered 4 exits: *Fac x3 / Gar) -8/Garrison History --------- Turn | Location | Event 18 | -11/Scrapyard | Discovered new exit (range 3) 53 | -11/Scrapyard | Entered Materials 309 | -10/Materials | Build established: Mutant 445 | -10/Materials | Discovered new exit (range 13) 516 | -10/Materials | Discovered new exit (range 12) 689 | -10/Materials | Discovered new exit (range 15) 941 | -10/Materials | Discovered new exit (range 13) 1019 | -10/Materials | Learned Storage trap positions 1064 | -10/Materials | Learned location of 1 exit from Storage 1099 | -10/Materials | Learned Storage interactive machine intel 1125 | -10/Materials | Learned 2 Storage zone layouts 1153 | -10/Materials | Learned location of 1 exit from Storage 1173 | -10/Materials | Learned Storage stockpile data 1201 | -10/Materials | Learned 4 Recycling zone layouts 1224 | -10/Materials | Crushed by falling debris 1224 | -10/Materials | Core integrity fell below 50% 1224 | -10/Materials | System corruption reached 10% 1240 | -10/Materials | Learned Storage stockpile data 1245 | -10/Materials | Discovered new exit (range 16) 1255 | -10/Materials | Lost 3 parts (2n1u) 1506 | -10/Materials | Central database locked down 1541 | -10/Materials | Entered another Materials area 1541 | -9/Materials | Accompanied by 1 ally 1541 | -9/Materials | Evolved 2 slots: Utility x2 1659 | -9/Materials | Discovered new exit (range 16) 2492 | -9/Materials | Discovered new exit (range 13) 2661 | -9/Materials | Discovered new exit (range 15) 3346 | -9/Materials | Repaired Adv. Beam Cannon 3400 | -9/Materials | Repaired Adv. Beam Cannon 3434 | -9/Materials | Repaired Shield Generator 3461 | -9/Materials | Repaired Lgt. Armor Plating 3773 | -9/Materials | Discovered new exit (range 3) 3855 | -9/Materials | Identified exit to Mines 3855 | -9/Materials | Identified exit to Storage 3942 | -9/Materials | Entered Storage 3943 | -9/Storage | Identified exit to Materials 3943 | -9/Storage | Identified exit to Recycling 3945 | -9/Storage | Loaded intel: 23 trap records 3947 | -9/Storage | Loaded intel: 24 interactive machine locations 4314 | -9/Storage | Identified exit to Garrison 4694 | -9/Storage | Met a pair of Derelict thieves 4723 | -9/Storage | Core integrity fell below 50% 4726 | -9/Storage | Garrison activated, responded to threat 5133 | -9/Storage | Assisted by bots powering up and referring to "LRC-V3" 5356 | -9/Storage | Learned Materials terminal intel 5406 | -9/Storage | Learned location of Zion (-6) 5436 | -9/Storage | Build established: Commander-Mutant 5447 | -9/Storage | Learned Storage trap positions 5465 | -9/Storage | Repaired Hvy. Particle Cannon 5494 | -9/Storage | Learned Materials stockpile data 5508 | -9/Storage | Repaired Shock Bomb Launcher 5541 | -9/Storage | Repaired Mni. Grenade Launcher 5580 | -9/Storage | Repaired Shock Bomb Launcher 5619 | -9/Storage | Repaired Shock Bomb Launcher 5658 | -9/Storage | Repaired Hvy. Particle Cannon 5686 | -9/Storage | Repaired Seismic Detector 5794 | -9/Storage | Entered Garrison 5794 | -9/Garrison | Accompanied by 11 allies 5822 | -9/Garrison | Triggered checkpoint 5873 | -9/Garrison | Garrison Relay disabled 5959 | -9/Garrison | Triggered checkpoint 5984 | -9/Garrison | Triggered checkpoint 6019 | -9/Garrison | Lost 3 allies 6091 | -9/Garrison | Lost 3 allies 6154 | -9/Garrison | Triggered checkpoint 6216 | -9/Garrison | Learned Materials security intel 6227 | -9/Garrison | Garrison Relay disabled 6312 | -9/Garrison | Lost 3 allies 6355 | -9/Garrison | Build established: Mutant 6372 | -9/Garrison | Triggered checkpoint 6406 | -9/Garrison | Garrison Relay disabled 6423 | -9/Garrison | Discovered exit to Materials (range 42) 6423 | -9/Garrison | Discovered exit to Materials (range 18) 6423 | -9/Garrison | Discovered exit to Materials (range 80) 6459 | -9/Garrison | Installed Relay Interface Framework 6490 | -9/Garrison | Triggered checkpoint 6597 | -9/Garrison | Rescued a captive Derelict 6639 | -9/Garrison | Triggered checkpoint 6764 | -9/Garrison | Garrison Relay disabled 6936 | -9/Garrison | Entered Materials 6936 | -8/Materials | Evolved 2 slots: Utility x2 6939 | -8/Materials | Loaded intel: 12 terminal locations 7027 | -8/Materials | Build established: Bothacker-Mutant 7439 | -8/Materials | Garrison activated, responded to threat 7518 | -8/Materials | Identified exit to Garrison 7980 | -8/Materials | Learned Storage emergency access door positions 8126 | -8/Materials | Learned location of Extension (-4) 8235 | -8/Materials | Discovered new exit (range 3) 8267 | -8/Materials | Identified exit to Factory 8499 | -8/Materials | Build established: Scavenger-Mutant 8728 | -8/Materials | Repaired Arm. Wheel 9144 | -8/Materials | Build established: Commander-Mutant 9324 | -8/Materials | Garrison activated, responded to threat 9364 | -8/Materials | Entered Garrison 9364 | -8/Garrison | Accompanied by 8 allies 9493 | -8/Garrison | Expanded RIF knowledge: Command Fork 9527 | -8/Garrison | Garrison Relay disabled 9629 | -8/Garrison | Triggered checkpoint 9678 | -8/Garrison | Triggered checkpoint 9861 | -8/Garrison | Triggered checkpoint 9923 | -8/Garrison | Triggered checkpoint 10010 | -8/Garrison | Triggered checkpoint 10032 | -8/Garrison | Discovered new exit (range 13) 10688 | -8/Garrison | Discovered new exit (range 12) 10710 | -8/Garrison | Triggered checkpoint 10727 | -8/Garrison | Garrison Relay disabled 10940 | -8/Garrison | Discovered new exit (range 23) 10940 | -8/Garrison | Discovered new exit (range 60) 10940 | -8/Garrison | Discovered new exit (range 24) 10940 | -8/Garrison | Discovered new exit (range 36) 11024 | -8/Garrison | Triggered checkpoint 11071 | -8/Garrison | Lost 3 allies 11084 | -8/Garrison | Triggered checkpoint 11125 | -8/Garrison | Garrison Relay disabled 11157 | -8/Garrison | Lost 4 allies 11247 | -8/Garrison | Entered Materials 11247 | -8/Materials | Accompanied by 10 allies 12012 | -8/Materials | Discovered exit to Factory (range 14) 12093 | -8/Materials | Learned Storage emergency access door positions 12147 | -8/Materials | Learned Storage stockpile data 12191 | -8/Materials | Learned location of 2 exits from Factory 12225 | -8/Materials | Learned location of 1 exit from Recycling 12249 | -8/Materials | Learned Factory trap positions 12282 | -8/Materials | Core integrity fell below 50% 12285 | -8/Materials | Learned 2 Lower Caves zone layouts 12317 | -8/Materials | Learned Factory stockpile data 13166 | -8/Materials | Identified exit to Garrison 13323 | -8/Materials | Garrison activated, responded to threat 13334 | -8/Materials | Entered Garrison 13334 | -8/Garrison | Accompanied by 11 allies 13451 | -8/Garrison | P-60 Hacker assimilated allied Defender 3k 13479 | -8/Garrison | Lost 4 allies 13529 | -8/Garrison | Garrison Relay disabled 13743 | -8/Garrison | Build established: Bothacker-Mutant 13797 | -8/Garrison | Core integrity fell below 20% 13998 | -8/Garrison | Triggered checkpoint 14071 | -8/Garrison | Triggered checkpoint 14210 | -8/Garrison | Triggered checkpoint 14276 | -8/Garrison | Build established: Commander-Mutant 14362 | -8/Garrison | Destroyed by Y-45 Defender with Heavy Assault Rifle Last Messages --------------- 14330_ S-10 Pest destroyed. 14331_ Technician 3a reports 0b10 security level has risen to 3. 14333_ Acquired 1 matter. 14334_ System corrupted: IFF burst signal emitted. 14342_ Trooper 3e suffers critical hit (Burn). 14342_ Trooper 3e destroyed. 14342_ Acquired 27 matter. 14343_ Technician 3a reports 0b10 security level has lowered to 2. 14344_ Acquired 6 matter. 14345_ Hrd. Medium Armor Plating destroyed. 14346_ Acquired 10 matter. 14346_ Destroyed Heat Sink. 14347_ Acquired 6 matter. 14349_ System corrupted: Component data lost. 14349_ Acquired 3 matter. 14352_ Technician 3a destroyed. 14352_ Y-45 Defender Heat Sink blasted off. 14356_ Y-45 Defender Lgt. Treads blasted off. 14358_ Y-45 Defender destroyed. 14362_ Arm. Wheel destroyed. Map ----- +----------------------------------------------------+ | ?????????????????????????????????????????????????? | | ?????????????????????????????????????????????????? | | ?????????????????????????????????????????????????? | | ?????????????????????????????????????????????????? | | ?????????????????????????????????????????????????? | | ?????????????????????????????????????????????????? | | ?????????????????????????????????????????????????? | | ?????????????????????????????????????????????????? | | ?????????????????????????????????????????????????? | | ???????????????????????? ???????????????????????? | | ???????????????????????? ???????????????????????? | | ????????????????????????^ ???????????????????????? | | ???????????????????????? ???????????????????????? | | ???????????????????????? ???????????????????????? | | ???????????????????????? ???????????????????????? | | ???????????????????????? ???????????????????????? | | ????????????????????????^ #??????????????????????? | | ???????????????????????? #??????????????????????? | | ????????????????????????!%#??????????????????????? | | ????????????????????????#Y#??????????????????????? | | ????????????????????????#/#??????????????????????? | | ????????????????????????#%[??????????????????????? | | ????????????????????????#=#??????????????????????? | | ????????????????????????# #??????????????????????? | | ????????????????????????# #??????????????????????? | | ????????????????????????#@#??????????????????????? | | ?????????????????########Y####### #?????????????? | | ?????????????????# !*!Y%![%[%= #?????????????? | | ?????????????????# ==%%*!=%%/%" " ??????? | | ?????????????????# #####*#####=#### ## #??????? | | ?????????????????# ????#!#??????????????????????? | | ?????????????????# ????# #??????????????????????? | | ?????????????????# ##### #####??????????????????? | | ?????????????????# + +??????????????????? | | ???????????####### ##### #####??????????????????? | | ???????????# ## #???# #??????????????????????? | | ?#+#####++##% %## ##??# #??????????????????????? | | ?? *% #### #??????????????????????? | | ??? =% " #??????????????????????? | | ????? ######??????????????????????? | | ??????# ## ## #???????????????????????????? | | ??????# ## ##^^ ###?????????????????????????? | | ??????" ^^ ^ #?????????????????????????? | | ??????" ^ ^^ [[#?????????????????????????? | | ??????" ^^ ^ =*#?????????????????????????? | | ??????" ^ ^^ % #?????????????????????????? | | ??????# ## ## %###?????????????????????????? | | ??????# ## ## ###########?????????????????? | | ??????# #?????????????????? | | ??????+ = / #?????????###?##### | +----------------------------------------------------+ Best States ------------- Heat Dissipation 45 Energy Generation 18 Energy Capacity 310 Matter Stores 300 Matter Capacity 300 Sight Range 16 Terrain Scan Density 10 Armor Coverage 450 Evasion (%) 55 Recoil Reduction 1 Offensive Hacking 30 Relay Coupler Types 3 Relay Coupler Value 50 Trap Extractor Capacity 4 Item Schematics ----------------- Imp. Utility Shielding | -8/Materials | Hacked Arm. Wheel | -8/Materials | Hacked Robot Schematics ------------------ None Fabricated ------------ Nothing Repaired ---------- Adv. Beam Cannon | 29% | -9/Materials Adv. Beam Cannon | 66% | -9/Materials Shield Generator | 13% | -9/Materials Lgt. Armor Plating | 72% | -9/Materials Hvy. Particle Cannon | 34% | -9/Storage Shock Bomb Launcher | 41% | -9/Storage Mni. Grenade Launcher | 20% | -9/Storage Shock Bomb Launcher | 49% | -9/Storage Shock Bomb Launcher | 68% | -9/Storage Hvy. Particle Cannon | 60% | -9/Storage Seismic Detector | 50% | -9/Storage Arm. Wheel | 39% | -8/Materials Alien Tech Used ----------------- None Achievements -------------- None Challenges ------------ None Game ------ Seed HardenedWarpBarrier Manual? 0 Play Time 01:49:23 Cumulative 291.7 hours Start 2025.06.19 @ 18:29:25 End 2025.06.19 @ 20:20:14 Sessions 1 Manual Loads 0 Difficulty Rogue Special Mode None Game No. 183 Rogue 183 Adventurer 0 Explorer 0 Win Type - Total 2 Types 1/0/0/1/0/0/0/0/0/0 Lore% 81 Gallery% 65 Achievement% 62 Wizard Run 0 Options --------- Layout 0 ASCII 0 Keyboard 0 Movement Mouse Keybinds 0 Fullscreen 1 Font 18/SmallcapsGlow Map View 76x50 Zoom Use 0% Tactical HUD 1 Map Filters NONE Filters NONE Steam 1 RUN: e0d21d4c-3152-4bd6-b5b5-a83b41493f4a